[Event "Late-Titled-Tuesday-Blitz-July-09-2024"]
[Site "Chess.com"]
[Date "2024.07.09"]
[Round "7"]
[White "Chessbard1972"]
[Black "KorolDimitriy75"]
[Result "1/2-1/2"]
[WhiteElo "2275"]
[BlackElo "2396"]
[TimeControl "180+1"]
[EndTime "15:15:14 PDT"]
[Termination "Game drawn by agreement"]

1. d4 {[%clk 0:03:00.9]} 1... Nf6 {[%clk 0:02:59.6]} 2. c4 {[%clk 0:02:59.2]}
2... c5 {[%clk 0:02:59.7]} 3. d5 {[%clk 0:02:58.8]} 3... b5 {[%clk 0:03:00]} 4.
cxb5 {[%clk 0:02:59.2]} 4... a6 {[%clk 0:03:00.4]} 5. b6 {[%clk 0:02:59.5]} 5...
d6 {[%clk 0:03:00.2]} 6. Nc3 {[%clk 0:02:59.4]} 6... Nbd7 {[%clk 0:03:00.3]} 7.
Nf3 {[%clk 0:02:59.5]} 7... g6 {[%clk 0:03:00.7]} 8. Nd2 {[%clk 0:02:59.3]} 8...
Bg7 {[%clk 0:03:00.5]} 9. e4 {[%clk 0:02:58.9]} 9... O-O {[%clk 0:03:00.6]} 10.
Be2 {[%clk 0:02:58.7]} 10... Nxb6 {[%clk 0:03:00.5]} 11. a4 {[%clk 0:02:56.8]}
11... a5 {[%clk 0:03:00.3]} 12. O-O {[%clk 0:02:55.6]} 12... e6 {[%clk
0:03:00.6]} 13. Nc4 {[%clk 0:02:43.2]} 13... exd5 {[%clk 0:02:57.6]} 14. Nxb6
{[%clk 0:02:35.5]} 14... Qxb6 {[%clk 0:02:58.5]} 15. exd5 {[%clk 0:02:32.4]}
15... Re8 {[%clk 0:02:19.8]} 16. Bb5 {[%clk 0:02:30.7]} 16... Bd7 {[%clk
0:02:13]} 17. Bf4 {[%clk 0:02:26.4]} 17... Rad8 {[%clk 0:01:33.8]} 18. h3 {[%clk
0:02:24.6]} 18... Ne4 {[%clk 0:00:59.7]} 19. Qf3 {[%clk 0:01:50.4]} 19... Nxc3
{[%clk 0:00:40.7]} 20. bxc3 {[%clk 0:01:49.8]} 20... Bxb5 {[%clk 0:00:40]} 21.
Rfb1 {[%clk 0:01:48.8]} 21... Be2 {[%clk 0:00:35.2]} 22. Rxb6 {[%clk 0:01:44.9]}
22... Bxf3 {[%clk 0:00:34.6]} 23. gxf3 {[%clk 0:01:45.3]} 23... Bxc3 {[%clk
0:00:33.7]} 24. Rc1 {[%clk 0:01:43.2]} 24... Bb4 {[%clk 0:00:32.3]} 25. Rxd6
{[%clk 0:01:38.2]} 25... Rxd6 {[%clk 0:00:30.7]} 26. Bxd6 {[%clk 0:01:37.9]}
26... Rd8 {[%clk 0:00:30.7]} 27. Bxc5 {[%clk 0:01:36.2]} 27... Rxd5 {[%clk
0:00:30.7]} 28. Bxb4 {[%clk 0:01:35.3]} 28... axb4 {[%clk 0:00:31.6]} 29. Rb1
{[%clk 0:01:30.1]} 29... Rd4 {[%clk 0:00:26.2]} 30. a5 {[%clk 0:01:29.7]} 30...
Rd5 {[%clk 0:00:23.1]} 31. Ra1 {[%clk 0:01:23.5]} 31... Rd7 {[%clk 0:00:22.2]}
32. Kf1 {[%clk 0:01:20]} 32... b3 {[%clk 0:00:20.2]} 33. a6 {[%clk 0:01:20.5]}
33... b2 {[%clk 0:00:17.8]} 34. Rb1 {[%clk 0:01:20.2]} 34... Ra7 {[%clk
0:00:17.5]} 35. Rxb2 {[%clk 0:01:20.4]} 35... Rxa6 {[%clk 0:00:17.8]} 36. Ke2
{[%clk 0:01:21.3]} 36... Re6+ {[%clk 0:00:17.8]} 37. Kf1 {[%clk 0:01:21.3]}
37... Kg7 {[%clk 0:00:18.7]} 38. Kg2 {[%clk 0:01:21.7]} 38... h5 {[%clk
0:00:19.1]} 39. h4 {[%clk 0:01:21]} 39... Rf6 {[%clk 0:00:19.1]} 40. Rb4 {[%clk
0:01:20.4]} 40... Re6 {[%clk 0:00:18.7]} 41. Kg3 {[%clk 0:01:20.8]} 41... Rf6
{[%clk 0:00:18.5]} 1/2-1/2

[Event "Late-Titled-Tuesday-Blitz-July-09-2024"]
[Site "Chess.com"]
[Date "2024.07.09"]
[Round "7"]
[White "Road2GM3000"]
[Black "gamboajp"]
[Result "1-0"]
[WhiteElo "2387"]
[BlackElo "2163"]
[TimeControl "180+1"]
[EndTime "15:15:17 PDT"]
[Termination "Road2GM3000 won by resignation"]

1. d4 {[%clk 0:03:00.9]} 1... e6 {[%clk 0:02:57.6]} 2. c4 {[%clk 0:03:01.3]}
2... d5 {[%clk 0:02:57]} 3. Nc3 {[%clk 0:03:01.9]} 3... c5 {[%clk 0:02:57.3]} 4.
cxd5 {[%clk 0:03:02.8]} 4... exd5 {[%clk 0:02:57.5]} 5. Nf3 {[%clk 0:03:03.4]}
5... Nc6 {[%clk 0:02:57.4]} 6. g3 {[%clk 0:03:03.7]} 6... Nf6 {[%clk 0:02:57.3]}
7. Bg2 {[%clk 0:03:03.9]} 7... cxd4 {[%clk 0:02:57.9]} 8. Nxd4 {[%clk
0:03:04.3]} 8... Bc5 {[%clk 0:02:58.5]} 9. Be3 {[%clk 0:03:01.3]} 9... Qb6
{[%clk 0:02:57.5]} 10. Nxc6 {[%clk 0:03:00.9]} 10... Bxe3 {[%clk 0:02:56.5]} 11.
fxe3 {[%clk 0:03:00.7]} 11... bxc6 {[%clk 0:02:55.4]} 12. Qd2 {[%clk 0:03:01.1]}
12... O-O {[%clk 0:02:51.6]} 13. O-O {[%clk 0:03:01.7]} 13... Re8 {[%clk
0:02:50]} 14. Nd1 {[%clk 0:02:58.7]} 14... Ne4 {[%clk 0:02:41.9]} 15. Bxe4
{[%clk 0:02:56.6]} 15... Rxe4 {[%clk 0:02:42.4]} 16. Rc1 {[%clk 0:02:53.8]}
16... Bh3 {[%clk 0:02:32.7]} 17. Rf2 {[%clk 0:02:54.1]} 17... Rae8 {[%clk
0:02:32.1]} 18. Qc3 {[%clk 0:02:51.2]} 18... Rc4 {[%clk 0:02:26.5]} 19. Qd2
{[%clk 0:02:49.4]} 19... Rxc1 {[%clk 0:02:05.5]} 20. Qxc1 {[%clk 0:02:49.9]}
20... d4 {[%clk 0:01:57.2]} 21. exd4 {[%clk 0:02:42.8]} 21... Qxd4 {[%clk
0:01:56.9]} 22. Nc3 {[%clk 0:02:43.3]} 22... h6 {[%clk 0:01:37.5]} 23. Qf4
{[%clk 0:02:41.6]} 23... Qxf4 {[%clk 0:01:28.9]} 24. Rxf4 {[%clk 0:02:40.3]}
24... Be6 {[%clk 0:01:25]} 25. Ra4 {[%clk 0:02:33.7]} 25... Re7 {[%clk
0:01:24.1]} 26. Ra6 {[%clk 0:02:33.2]} 26... Bd5 {[%clk 0:01:22]} 27. Kf2 {[%clk
0:02:30]} 27... g5 {[%clk 0:01:16.1]} 28. Nxd5 {[%clk 0:02:29.8]} 28... cxd5
{[%clk 0:01:15.9]} 29. Rxh6 {[%clk 0:02:28.8]} 29... Kg7 {[%clk 0:01:14.7]} 30.
Rd6 {[%clk 0:02:28.9]} 30... Rb7 {[%clk 0:01:14.8]} 31. b3 {[%clk 0:02:28.8]}
31... Rb5 {[%clk 0:01:15.1]} 32. Rd7 {[%clk 0:02:26.7]} 32... Ra5 {[%clk
0:01:15]} 33. a4 {[%clk 0:02:26.5]} 33... Kf6 {[%clk 0:01:12.1]} 34. Ke3 {[%clk
0:02:26.1]} 34... Ke6 {[%clk 0:01:12.2]} 35. Rb7 {[%clk 0:02:24.9]} 35... f5
{[%clk 0:01:10.7]} 36. Kd4 {[%clk 0:02:24.5]} 36... f4 {[%clk 0:01:09.8]} 37.
Rg7 {[%clk 0:02:21.8]} 37... Kf5 {[%clk 0:01:05.1]} 38. Rf7+ {[%clk 0:02:17.5]}
38... Kg4 {[%clk 0:01:05.3]} 39. gxf4 {[%clk 0:02:17.5]} 39... gxf4 {[%clk
0:01:04.8]} 40. Rd7 {[%clk 0:02:18.1]} 40... Ra6 {[%clk 0:01:03.8]} 41. Kxd5
{[%clk 0:02:11.2]} 41... Rb6 {[%clk 0:01:01.5]} 42. Kc4 {[%clk 0:02:10.6]} 42...
Re6 {[%clk 0:01:00.9]} 43. Rxa7 {[%clk 0:02:05.2]} 43... Rxe2 {[%clk 0:01:01]}
44. Rg7+ {[%clk 0:01:58]} 44... Kh3 {[%clk 0:00:55]} 45. Rf7 {[%clk 0:01:57.7]}
45... Kg4 {[%clk 0:00:54.7]} 46. a5 {[%clk 0:01:56]} 46... f3 {[%clk 0:00:54.5]}
47. a6 {[%clk 0:01:54.1]} 47... Rxh2 {[%clk 0:00:54.7]} 48. a7 {[%clk
0:01:52.7]} 48... Ra2 {[%clk 0:00:53.6]} 49. b4 {[%clk 0:01:51.6]} 49... Rc2+
{[%clk 0:00:41.7]} 50. Kd5 {[%clk 0:01:44.7]} 50... Ra2 {[%clk 0:00:40.9]} 51.
b5 {[%clk 0:01:43.3]} 51... f2 {[%clk 0:00:38.9]} 52. b6 {[%clk 0:01:40.6]}
52... Kg3 {[%clk 0:00:37.6]} 53. Kc6 {[%clk 0:01:40.2]} 53... Kg2 {[%clk
0:00:37.4]} 54. Kb7 {[%clk 0:01:40.8]} 54... f1=Q {[%clk 0:00:36.7]} 55. Rxf1
{[%clk 0:01:41.3]} 55... Kxf1 {[%clk 0:00:36.9]} 56. a8=Q {[%clk 0:01:42.1]}
56... Rxa8 {[%clk 0:00:35.6]} 57. Kxa8 {[%clk 0:01:43]} 1-0

[Event "Late-Titled-Tuesday-Blitz-July-09-2024"]
[Site "Chess.com"]
[Date "2024.07.09"]
[Round "7"]
[White "ChessBrainiacOnTwitch"]
[Black "Chigorinetz"]
[Result "0-1"]
[WhiteElo "2797"]
[BlackElo "2625"]
[TimeControl "180+1"]
[EndTime "15:15:19 PDT"]
[Termination "Chigorinetz won on time"]

1. e4 {[%clk 0:03:00.9]} 1... c5 {[%clk 0:02:58.8]} 2. Nf3 {[%clk 0:03:01]} 2...
Nc6 {[%clk 0:02:57.1]} 3. Bb5 {[%clk 0:03:00.2]} 3... g5 {[%clk 0:02:56.9]} 4.
Nxg5 {[%clk 0:02:55.7]} 4... Nf6 {[%clk 0:02:55.8]} 5. Bxc6 {[%clk 0:02:51.1]}
5... dxc6 {[%clk 0:02:56.7]} 6. e5 {[%clk 0:02:50.4]} 6... Rg8 {[%clk
0:02:56.7]} 7. d3 {[%clk 0:02:47]} 7... Qd5 {[%clk 0:02:56.3]} 8. exf6 {[%clk
0:02:44.5]} 8... Qxg2 {[%clk 0:02:55.2]} 9. Rf1 {[%clk 0:02:34.9]} 9... Rxg5
{[%clk 0:02:54]} 10. Bxg5 {[%clk 0:02:35.8]} 10... Bh3 {[%clk 0:02:53.7]} 11.
Nd2 {[%clk 0:02:21.4]} 11... Qxg5 {[%clk 0:02:53.3]} 12. Rh1 {[%clk 0:01:41.9]}
12... Bh6 {[%clk 0:02:28.7]} 13. Qe2 {[%clk 0:01:37.6]} 13... Qxf6 {[%clk
0:02:20.9]} 14. O-O-O {[%clk 0:01:37.1]} 14... Bg2 {[%clk 0:02:10.6]} 15. Rhg1
{[%clk 0:01:34.3]} 15... Bf3 {[%clk 0:02:10.5]} 16. Qe1 {[%clk 0:01:04.7]} 16...
O-O-O {[%clk 0:02:06.9]} 17. Kb1 {[%clk 0:01:00.3]} 17... Bxd1 {[%clk
0:01:59.6]} 18. Qxd1 {[%clk 0:01:01.2]} 18... Qxf2 {[%clk 0:01:58.9]} 19. Ne4
{[%clk 0:00:59]} 19... Qxh2 {[%clk 0:01:54.7]} 20. Qg4+ {[%clk 0:00:54.1]} 20...
e6 {[%clk 0:01:53]} 21. Qd1 {[%clk 0:00:11.4]} 21... Qe5 {[%clk 0:01:48.9]} 22.
Rh1 {[%clk 0:00:10.5]} 22... Bg7 {[%clk 0:01:48.4]} 23. Nc3 {[%clk 0:00:09.8]}
23... c4 {[%clk 0:01:46.4]} 24. Re1 {[%clk 0:00:06.3]} 24... Qa5 {[%clk
0:01:42]} 25. Ne4 {[%clk 0:00:04.2]} 25... Qb5 {[%clk 0:01:34.2]} 26. Qc1 {[%clk
0:00:01.4]} 26... cxd3 {[%clk 0:01:31.7]} 27. cxd3 {[%clk 0:00:02.3]} 27...
Qxd3+ {[%clk 0:01:31.3]} 28. Ka1 {[%clk 0:00:03]} 28... h5 {[%clk 0:01:19.9]}
29. Nc3 {[%clk 0:00:01.3]} 29... Qd2 {[%clk 0:01:15.4]} 30. Qb1 {[%clk
0:00:01.4]} 30... Bxc3 {[%clk 0:01:10.2]} 31. bxc3 {[%clk 0:00:02.3]} 31...
Qxc3+ {[%clk 0:01:09.8]} 0-1

[Event "Late-Titled-Tuesday-Blitz-July-09-2024"]
[Site "Chess.com"]
[Date "2024.07.09"]
[Round "7"]
[White "talaicito"]
[Black "GilbertoHernandezAmura"]
[Result "0-1"]
[WhiteElo "2322"]
[BlackElo "2515"]
[TimeControl "180+1"]
[EndTime "15:15:19 PDT"]
[Termination "GilbertoHernandezAmura won on time"]

1. d4 {[%clk 0:03:00.9]} 1... Nf6 {[%clk 0:02:58.7]} 2. Nc3 {[%clk 0:03:00.4]}
2... d5 {[%clk 0:02:54.7]} 3. Bf4 {[%clk 0:03:00.5]} 3... c6 {[%clk 0:02:38.5]}
4. e3 {[%clk 0:03:00.5]} 4... Bf5 {[%clk 0:02:38.5]} 5. Nf3 {[%clk 0:02:59.2]}
5... Nbd7 {[%clk 0:02:38.7]} 6. Ne5 {[%clk 0:02:59.4]} 6... e6 {[%clk
0:02:37.9]} 7. g4 {[%clk 0:02:59.8]} 7... Nxe5 {[%clk 0:02:14.9]} 8. gxf5 {[%clk
0:02:59.5]} 8... Ned7 {[%clk 0:02:09.7]} 9. fxe6 {[%clk 0:02:58.2]} 9... fxe6
{[%clk 0:02:10.6]} 10. Bh3 {[%clk 0:02:57.1]} 10... Qe7 {[%clk 0:02:04.1]} 11.
Qe2 {[%clk 0:02:32.2]} 11... e5 {[%clk 0:02:00.4]} 12. dxe5 {[%clk 0:02:29.9]}
12... Nxe5 {[%clk 0:02:01.3]} 13. O-O-O {[%clk 0:02:29.3]} 13... Nc4 {[%clk
0:01:54.7]} 14. Rd3 {[%clk 0:02:19.9]} 14... Qb4 {[%clk 0:01:51.3]} 15. Nd1
{[%clk 0:02:17.1]} 15... Qa5 {[%clk 0:01:46.6]} 16. Kb1 {[%clk 0:02:09.8]} 16...
Bd6 {[%clk 0:01:46.6]} 17. Rg1 {[%clk 0:01:49.8]} 17... Qc7 {[%clk 0:01:35.8]}
18. f3 {[%clk 0:01:09.8]} 18... Qe7 {[%clk 0:01:32.3]} 19. Bxd6 {[%clk 0:01:00]}
19... Nxd6 {[%clk 0:01:31.4]} 20. Qg2 {[%clk 0:00:53.1]} 20... O-O {[%clk
0:01:31.2]} 21. Nf2 {[%clk 0:00:44]} 21... Rad8 {[%clk 0:01:24.4]} 22. Rdd1
{[%clk 0:00:35]} 22... Kh8 {[%clk 0:01:18.7]} 23. Rde1 {[%clk 0:00:34.7]} 23...
Nc4 {[%clk 0:01:17.9]} 24. Qg5 {[%clk 0:00:24.4]} 24... Rf7 {[%clk 0:01:10.7]}
25. Nd3 {[%clk 0:00:18.1]} 25... Re8 {[%clk 0:01:07.2]} 26. e4 {[%clk
0:00:07.4]} 26... dxe4 {[%clk 0:01:05.8]} 27. Qh4 {[%clk 0:00:04]} 27... Nd2+
{[%clk 0:01:03.5]} 28. Ka1 {[%clk 0:00:02.1]} 28... Nxf3 {[%clk 0:01:01.8]} 0-1

[Event "Late-Titled-Tuesday-Blitz-July-09-2024"]
[Site "Chess.com"]
[Date "2024.07.09"]
[Round "7"]
[White "Boorchess"]
[Black "Gzucaritas"]
[Result "1-0"]
[WhiteElo "2516"]
[BlackElo "2076"]
[TimeControl "180+1"]
[EndTime "15:15:28 PDT"]
[Termination "Boorchess won on time"]

1. d4 {[%clk 0:03:00.9]} 1... Nf6 {[%clk 0:02:58.7]} 2. Nf3 {[%clk 0:03:01.3]}
2... g6 {[%clk 0:02:58.8]} 3. Bf4 {[%clk 0:03:01.8]} 3... d5 {[%clk 0:02:59]} 4.
e3 {[%clk 0:03:02.3]} 4... Bg7 {[%clk 0:02:59.2]} 5. Be2 {[%clk 0:03:02.2]} 5...
O-O {[%clk 0:02:59.4]} 6. h3 {[%clk 0:03:02.6]} 6... c5 {[%clk 0:02:59.5]} 7. c3
{[%clk 0:03:02.7]} 7... Nc6 {[%clk 0:02:59.7]} 8. Nbd2 {[%clk 0:03:02.6]} 8...
b6 {[%clk 0:03:00.1]} 9. O-O {[%clk 0:03:02.3]} 9... Bb7 {[%clk 0:02:59.7]} 10.
Ne5 {[%clk 0:03:02.4]} 10... Rc8 {[%clk 0:02:51]} 11. Qa4 {[%clk 0:02:57.7]}
11... Nxe5 {[%clk 0:02:42.7]} 12. Bxe5 {[%clk 0:02:57.6]} 12... a6 {[%clk
0:02:41.9]} 13. Qd1 {[%clk 0:02:48.9]} 13... b5 {[%clk 0:02:34.7]} 14. a4 {[%clk
0:02:46.5]} 14... b4 {[%clk 0:02:33.8]} 15. cxb4 {[%clk 0:02:45.6]} 15... cxb4
{[%clk 0:02:34]} 16. a5 {[%clk 0:02:42]} 16... Qd7 {[%clk 0:02:27.9]} 17. Qb3
{[%clk 0:02:36.3]} 17... Bh6 {[%clk 0:01:42.3]} 18. Qxb4 {[%clk 0:02:16.6]}
18... Rc2 {[%clk 0:01:41.8]} 19. Bd3 {[%clk 0:02:11.7]} 19... Rc6 {[%clk
0:01:27.3]} 20. Rfc1 {[%clk 0:02:08.5]} 20... Rfc8 {[%clk 0:01:26.5]} 21. Rxc6
{[%clk 0:02:07.5]} 21... Rxc6 {[%clk 0:01:16.9]} 22. Nb3 {[%clk 0:01:55.8]}
22... Qc8 {[%clk 0:01:07.7]} 23. Nc5 {[%clk 0:01:51]} 23... Ba8 {[%clk 0:01:01]}
24. Bxf6 {[%clk 0:01:50.4]} 24... exf6 {[%clk 0:00:59]} 25. Qd2 {[%clk
0:01:48.3]} 25... Bb7 {[%clk 0:00:51.1]} 26. b4 {[%clk 0:01:46.2]} 26... f5
{[%clk 0:00:43.5]} 27. Re1 {[%clk 0:01:33.9]} 27... Rf6 {[%clk 0:00:32.7]} 28.
f4 {[%clk 0:01:27.5]} 28... g5 {[%clk 0:00:31.3]} 29. g3 {[%clk 0:01:27.6]}
29... gxf4 {[%clk 0:00:30.8]} 30. exf4 {[%clk 0:01:26.8]} 30... Rg6 {[%clk
0:00:30]} 31. Kh2 {[%clk 0:01:25.3]} 31... Bg7 {[%clk 0:00:11.8]} 32. Qe3 {[%clk
0:01:19.7]} 32... Bc6 {[%clk 0:00:07.9]} 33. Bxa6 {[%clk 0:01:15.5]} 33... Qf8
{[%clk 0:00:07.6]} 34. b5 {[%clk 0:01:13.6]} 34... Bd7 {[%clk 0:00:04.2]} 35.
Nxd7 {[%clk 0:01:11.9]} 35... Qb4 {[%clk 0:00:02.9]} 36. Qe8+ {[%clk 0:01:11.2]}
36... Bf8 {[%clk 0:00:02.5]} 37. Qxf8+ {[%clk 0:01:11.6]} 1-0

[Event "Late-Titled-Tuesday-Blitz-July-09-2024"]
[Site "Chess.com"]
[Date "2024.07.09"]
[Round "7"]
[White "Veleamater"]
[Black "pooh2012"]
[Result "0-1"]
[WhiteElo "2436"]
[BlackElo "2632"]
[TimeControl "180+1"]
[EndTime "15:15:29 PDT"]
[Termination "pooh2012 won by resignation"]

1. g3 {[%clk 0:03:00.9]} 1... Nf6 {[%clk 0:02:58.8]} 2. Bg2 {[%clk 0:03:01]}
2... d5 {[%clk 0:02:58.2]} 3. d3 {[%clk 0:03:01.5]} 3... g6 {[%clk 0:02:57.9]}
4. Nf3 {[%clk 0:03:01.9]} 4... Bg7 {[%clk 0:02:58.4]} 5. O-O {[%clk 0:03:02.3]}
5... O-O {[%clk 0:02:58.7]} 6. h3 {[%clk 0:03:02.9]} 6... c6 {[%clk 0:02:55.9]}
7. Nc3 {[%clk 0:03:03.3]} 7... Re8 {[%clk 0:02:55.6]} 8. e4 {[%clk 0:03:02.8]}
8... e5 {[%clk 0:02:54.4]} 9. Nd2 {[%clk 0:03:02]} 9... Na6 {[%clk 0:02:50.3]}
10. f4 {[%clk 0:03:01]} 10... Nh5 {[%clk 0:02:41.7]} 11. Ne2 {[%clk 0:02:57.2]}
11... dxe4 {[%clk 0:02:37.4]} 12. Nxe4 {[%clk 0:02:56]} 12... f5 {[%clk
0:02:33.5]} 13. N4c3 {[%clk 0:02:53.8]} 13... exf4 {[%clk 0:02:29.9]} 14. Bxf4
{[%clk 0:02:46.9]} 14... Nxf4 {[%clk 0:02:26]} 15. Nxf4 {[%clk 0:02:45]} 15...
Qb6+ {[%clk 0:02:18.1]} 16. Kh2 {[%clk 0:02:43]} 16... Qxb2 {[%clk 0:02:18.2]}
17. Re1 {[%clk 0:02:19.1]} 17... Bd7 {[%clk 0:02:06.6]} 18. Rb1 {[%clk
0:02:07.9]} 18... Qxc3 {[%clk 0:02:04.3]} 19. Rxe8+ {[%clk 0:02:06.2]} 19...
Rxe8 {[%clk 0:01:54.3]} 20. Rxb7 {[%clk 0:02:05]} 20... Re1 {[%clk 0:01:54.6]}
21. Qf3 {[%clk 0:02:03.4]} 21... Qd4 {[%clk 0:01:49.3]} 22. h4 {[%clk 0:02:02]}
22... Be5 {[%clk 0:01:38.9]} 23. c3 {[%clk 0:02:01.2]} 23... Qd6 {[%clk
0:01:34.7]} 24. d4 {[%clk 0:01:58.2]} 24... Bxf4 {[%clk 0:01:30.7]} 25. gxf4
{[%clk 0:01:58.6]} 25... Re4 {[%clk 0:01:20.9]} 26. Qg3 {[%clk 0:01:58.4]} 26...
Rxf4 {[%clk 0:01:16.9]} 27. Kh3 {[%clk 0:01:55.4]} 27... Nc7 {[%clk 0:00:58.1]}
28. h5 {[%clk 0:01:44.2]} 28... Kg7 {[%clk 0:00:52.1]} 29. Rxa7 {[%clk
0:01:31.8]} 29... Ne6 {[%clk 0:00:42.6]} 30. a4 {[%clk 0:00:51.7]} 30... Kf6
{[%clk 0:00:35.7]} 31. a5 {[%clk 0:00:48]} 31... Ng5+ {[%clk 0:00:33.5]} 32. Kh2
{[%clk 0:00:32.3]} 32... Rh4+ {[%clk 0:00:33]} 0-1

[Event "Late-Titled-Tuesday-Blitz-July-09-2024"]
[Site "Chess.com"]
[Date "2024.07.09"]
[Round "7"]
[White "yujiarun18"]
[Black "Michalczak"]
[Result "0-1"]
[WhiteElo "2256"]
[BlackElo "2510"]
[TimeControl "180+1"]
[EndTime "15:15:30 PDT"]
[Termination "Michalczak won by resignation"]

1. e4 {[%clk 0:03:00.9]} 1... c5 {[%clk 0:02:59.8]} 2. Nf3 {[%clk 0:03:00.8]}
2... d6 {[%clk 0:03:00.1]} 3. d4 {[%clk 0:03:01]} 3... cxd4 {[%clk 0:03:00.4]}
4. Nxd4 {[%clk 0:03:01.3]} 4... Nf6 {[%clk 0:03:00.8]} 5. Nc3 {[%clk 0:03:01.4]}
5... g6 {[%clk 0:03:00]} 6. f3 {[%clk 0:03:00.4]} 6... Nc6 {[%clk 0:02:56.3]} 7.
Be3 {[%clk 0:02:59]} 7... h5 {[%clk 0:02:52.9]} 8. Qd2 {[%clk 0:02:59]} 8...
Nxd4 {[%clk 0:02:51.5]} 9. Bxd4 {[%clk 0:02:58.9]} 9... Bh6 {[%clk 0:02:52.1]}
10. Qd1 {[%clk 0:02:49.8]} 10... Be6 {[%clk 0:02:44.1]} 11. Bb5+ {[%clk
0:02:46.7]} 11... Kf8 {[%clk 0:02:42.5]} 12. O-O {[%clk 0:02:36.4]} 12... a6
{[%clk 0:02:37.8]} 13. Ba4 {[%clk 0:02:33.7]} 13... Rc8 {[%clk 0:02:34.7]} 14.
Bb3 {[%clk 0:02:33.2]} 14... Bc4 {[%clk 0:02:10.8]} 15. Re1 {[%clk 0:02:19.3]}
15... Kg7 {[%clk 0:02:01.2]} 16. Nd5 {[%clk 0:02:12.5]} 16... e5 {[%clk
0:01:49.5]} 17. Bb6 {[%clk 0:01:42.6]} 17... Qf8 {[%clk 0:01:49.5]} 18. Bxc4
{[%clk 0:01:34.7]} 18... Rxc4 {[%clk 0:01:48.3]} 19. Qd3 {[%clk 0:01:34.2]}
19... Rc6 {[%clk 0:01:41.7]} 20. Bf2 {[%clk 0:01:24.1]} 20... Nxd5 {[%clk
0:01:38.7]} 21. exd5 {[%clk 0:01:23]} 21... Rc7 {[%clk 0:01:30.7]} 22. c4 {[%clk
0:01:20.7]} 22... Qc8 {[%clk 0:01:24.7]} 23. b3 {[%clk 0:01:19.9]} 23... Re8
{[%clk 0:01:22]} 24. Rad1 {[%clk 0:01:16.2]} 24... Qd7 {[%clk 0:01:20.1]} 25.
Re4 {[%clk 0:01:06.7]} 25... b5 {[%clk 0:01:16.8]} 26. Rde1 {[%clk 0:01:02.7]}
26... bxc4 {[%clk 0:01:16.4]} 27. bxc4 {[%clk 0:01:02.6]} 27... Rb8 {[%clk
0:01:14.4]} 28. h3 {[%clk 0:00:56.5]} 28... Rb2 {[%clk 0:01:12.4]} 29. Bg3
{[%clk 0:00:50.6]} 29... Rxa2 {[%clk 0:01:05.7]} 30. Rxe5 {[%clk 0:00:39]} 30...
dxe5 {[%clk 0:01:03.9]} 31. Bxe5+ {[%clk 0:00:39.7]} 31... Kh7 {[%clk
0:01:04.2]} 32. Bxc7 {[%clk 0:00:29.1]} 32... Qxc7 {[%clk 0:01:05.1]} 33. Qd4
{[%clk 0:00:20.5]} 33... Qg3 {[%clk 0:00:56.9]} 0-1

[Event "Late-Titled-Tuesday-Blitz-July-09-2024"]
[Site "Chess.com"]
[Date "2024.07.09"]
[Round "7"]
[White "ChessSwole"]
[Black "Zhigalko_Sergei"]
[Result "1-0"]
[WhiteElo "2734"]
[BlackElo "2914"]
[TimeControl "180+1"]
[EndTime "15:15:31 PDT"]
[Termination "ChessSwole won by checkmate"]

1. d4 {[%clk 0:03:00.9]} 1... Nf6 {[%clk 0:03:00]} 2. Bg5 {[%clk 0:02:59.7]}
2... d5 {[%clk 0:02:59.7]} 3. Nd2 {[%clk 0:02:59.6]} 3... c5 {[%clk 0:02:59.3]}
4. Bxf6 {[%clk 0:02:59.6]} 4... gxf6 {[%clk 0:02:58.9]} 5. dxc5 {[%clk
0:03:00.4]} 5... e6 {[%clk 0:02:57.1]} 6. e4 {[%clk 0:03:00.5]} 6... Bxc5 {[%clk
0:02:54.6]} 7. Qh5 {[%clk 0:03:00.5]} 7... Qb6 {[%clk 0:02:36.9]} 8. O-O-O
{[%clk 0:03:00.5]} 8... Bxf2 {[%clk 0:02:36.7]} 9. exd5 {[%clk 0:03:00.7]} 9...
Bxg1 {[%clk 0:02:29.5]} 10. Rxg1 {[%clk 0:03:01.6]} 10... Na6 {[%clk 0:02:13.7]}
11. Bc4 {[%clk 0:02:27.3]} 11... Nc5 {[%clk 0:02:07.1]} 12. Rge1 {[%clk
0:02:22.6]} 12... e5 {[%clk 0:01:37.9]} 13. d6 {[%clk 0:02:11]} 13... Be6 {[%clk
0:01:31.4]} 14. Bxe6 {[%clk 0:02:10.8]} 14... Nxe6 {[%clk 0:01:31.6]} 15. Ne4
{[%clk 0:01:59.2]} 15... O-O-O {[%clk 0:01:24.7]} 16. Qxf7 {[%clk 0:01:54.3]}
16... Nd4 {[%clk 0:01:02.3]} 17. Qxf6 {[%clk 0:01:45.7]} 17... Nc6 {[%clk
0:01:01]} 18. Kb1 {[%clk 0:01:18.1]} 18... Kb8 {[%clk 0:00:59.3]} 19. Qf2 {[%clk
0:01:14.1]} 19... Qa5 {[%clk 0:00:35.8]} 20. Qc5 {[%clk 0:01:09.9]} 20... Qa6
{[%clk 0:00:35.8]} 21. d7 {[%clk 0:01:04.7]} 21... Ka8 {[%clk 0:00:27.4]} 22. g4
{[%clk 0:00:54.4]} 22... Nb8 {[%clk 0:00:23.8]} 23. Qxe5 {[%clk 0:00:46.3]}
23... Rhg8 {[%clk 0:00:13.2]} 24. Nf6 {[%clk 0:00:42.8]} 24... Rg6 {[%clk
0:00:11.3]} 25. Nd5 {[%clk 0:00:42.4]} 25... Rxd7 {[%clk 0:00:06.6]} 26. Qxb8+
{[%clk 0:00:42.7]} 26... Kxb8 {[%clk 0:00:06.4]} 27. Re8+ {[%clk 0:00:43.4]}
27... Rd8 {[%clk 0:00:07]} 28. Rxd8# {[%clk 0:00:44.3]} 1-0